[Event "Titled Tuesday Blitz February 21 Late 2023"]
[White "The_Sherman_Variation"]
[Black "Solon, Nathan"]
[BlackFideId "2017229"]
[WhiteElo "2501"]
[BlackElo "2306"]
[Result "0-1"]
[Round "07"]
[TimeControl "180+2"]
[Date "2023.02.21"]
[WhiteClock "0:01:15"]
[BlackClock "0:01:23"]

1. d4 {[%clk 0:03:00]}  Nf6 {[%clk 0:02:59]} 2. Bf4 {[%clk 0:03:00]}  c5 {[%clk 0:02:59]} 3. c3 {[%clk 0:02:56]}  Qb6 {[%clk 0:02:56]} 4. Qb3 {[%clk 0:02:54]}  Qxb3 {[%clk 0:02:55]} 5. axb3 {[%clk 0:02:55]}  cxd4 {[%clk 0:02:56]} 6. cxd4 {[%clk 0:02:56]}  Nc6 {[%clk 0:02:56]} 7. e3 {[%clk 0:02:54]}  Nb4 {[%clk 0:02:54]} 8. Na3 {[%clk 0:02:54]}  d6 {[%clk 0:02:38]} 9. Rc1 {[%clk 0:02:49]}  a6 {[%clk 0:02:35]} 10. f3 {[%clk 0:02:38]}  Nfd5 {[%clk 0:02:32]} 11. Nh3 {[%clk 0:02:26]}  Bxh3 {[%clk 0:02:30]} 12. gxh3 {[%clk 0:02:27]}  Nxf4 {[%clk 0:02:30]} 13. exf4 {[%clk 0:02:28]}  g6 {[%clk 0:02:26]} 14. Nc4 {[%clk 0:02:22]}  Nd5 {[%clk 0:02:19]} 15. Na5 {[%clk 0:02:05]}  b6 {[%clk 0:02:04]} 16. Nc4 {[%clk 0:01:46]}  Bh6 {[%clk 0:02:02]} 17. Bd3 {[%clk 0:01:37]}  Nxf4 {[%clk 0:01:57]} 18. Rd1 {[%clk 0:01:34]}  b5 {[%clk 0:01:51]} 19. Be4 {[%clk 0:01:26]}  d5 {[%clk 0:01:43]} 20. Nb6 {[%clk 0:01:24]}  Rd8 {[%clk 0:01:34]} 21. Bb1 {[%clk 0:01:23]}  Rd6 {[%clk 0:01:29]} 22. Nc8 {[%clk 0:01:20]}  Rc6 {[%clk 0:01:23]} 23. Na7 {[%clk 0:01:15]}  Rc7 {[%clk 0:01:23]} 0-1


[Site "https://www.chess.com"]

[Event "Titled Tuesday Blitz February 21 Late 2023"]
[White "Timmermans, Mark"]
[Black "Womacka, Mathias"]
[WhiteFideId "1026399"]
[BlackFideId "4611390"]
[WhiteElo "2392"]
[BlackElo "2396"]
[Result "1/2-1/2"]
[Round "07"]
[TimeControl "180+2"]
[Date "2023.02.21"]
[WhiteClock "0:00:14"]
[BlackClock "0:00:16"]

1. e4 {[%clk 0:02:59]}  c5 {[%clk 0:02:59]} 2. Nf3 {[%clk 0:02:59]}  d6 {[%clk 0:02:59]} 3. d4 {[%clk 0:02:59]}  cxd4 {[%clk 0:03:00]} 4. Nxd4 {[%clk 0:02:58]}  Nf6 {[%clk 0:03:01]} 5. Nc3 {[%clk 0:02:58]}  a6 {[%clk 0:03:01]} 6. g3 {[%clk 0:02:50]}  e5 {[%clk 0:03:00]} 7. Nde2 {[%clk 0:02:45]}  Nbd7 {[%clk 0:03:00]} 8. Bg2 {[%clk 0:02:45]}  b5 {[%clk 0:02:59]} 9. a3 {[%clk 0:02:44]}  Be7 {[%clk 0:02:58]} 10. O-O {[%clk 0:02:44]}  Bb7 {[%clk 0:02:56]} 11. h3 {[%clk 0:02:36]}  O-O {[%clk 0:02:55]} 12. Be3 {[%clk 0:02:26]}  Rc8 {[%clk 0:02:52]} 13. Kh2 {[%clk 0:02:16]}  Nb6 {[%clk 0:02:44]} 14. g4 {[%clk 0:02:11]}  Nc4 {[%clk 0:02:42]} 15. Bc1 {[%clk 0:02:12]}  Nd7 {[%clk 0:02:17]} 16. Ng3 {[%clk 0:02:12]}  Bg5 {[%clk 0:02:13]} 17. b3 {[%clk 0:01:59]}  Ncb6 {[%clk 0:01:57]} 18. Nce2 {[%clk 0:01:35]}  Bxc1 {[%clk 0:01:49]} 19. Rxc1 {[%clk 0:01:36]}  Nc5 {[%clk 0:01:46]} 20. f4 {[%clk 0:01:34]}  d5 {[%clk 0:01:24]} 21. exd5 {[%clk 0:01:27]}  Nxd5 {[%clk 0:01:15]} 22. Bxd5 {[%clk 0:01:26]}  Qxd5 {[%clk 0:00:57]} 23. Qxd5 {[%clk 0:01:26]}  Bxd5 {[%clk 0:00:58]} 24. fxe5 {[%clk 0:01:26]}  Rfe8 {[%clk 0:00:57]} 25. Nf4 {[%clk 0:01:18]}  Rxe5 {[%clk 0:00:54]} 26. Rce1 {[%clk 0:01:13]}  Rxe1 {[%clk 0:00:51]} 27. Rxe1 {[%clk 0:01:14]}  Bc6 {[%clk 0:00:47]} 28. Kg1 {[%clk 0:01:13]}  Kf8 {[%clk 0:00:46]} 29. Kf2 {[%clk 0:01:11]}  Re8 {[%clk 0:00:41]} 30. Rxe8+ {[%clk 0:01:10]}  Kxe8 {[%clk 0:00:42]} 31. Ke3 {[%clk 0:01:11]}  g6 {[%clk 0:00:38]} 32. Kd4 {[%clk 0:01:05]}  Nd7 {[%clk 0:00:38]} 33. g5 {[%clk 0:01:06]}  Ke7 {[%clk 0:00:37]} 34. h4 {[%clk 0:01:05]}  Kd6 {[%clk 0:00:36]} 35. c4 {[%clk 0:01:01]}  bxc4 {[%clk 0:00:35]} 36. bxc4 {[%clk 0:01:02]}  f6 {[%clk 0:00:31]} 37. h5 {[%clk 0:00:54]}  gxh5 {[%clk 0:00:29]} 38. Nf5+ {[%clk 0:00:47]}  Kc7 {[%clk 0:00:26]} 39. Ne6+ {[%clk 0:00:43]}  Kb6 {[%clk 0:00:24]} 40. c5+ {[%clk 0:00:39]}  Ka5 {[%clk 0:00:24]} 41. Nd8 {[%clk 0:00:37]}  Bf3 {[%clk 0:00:18]} 42. c6 {[%clk 0:00:37]}  Bxc6 {[%clk 0:00:17]} 43. Nxc6+ {[%clk 0:00:37]}  Ka4 {[%clk 0:00:18]} 44. gxf6 {[%clk 0:00:14]}  Nxf6 {[%clk 0:00:19]} 45. Kc4 {[%clk 0:00:14]}  Kxa3 {[%clk 0:00:18]} 46. Nh4 {[%clk 0:00:13]}  Ng4 {[%clk 0:00:17]} 47. Kd4 {[%clk 0:00:13]}  Ka4 {[%clk 0:00:16]} 48. Ke4 {[%clk 0:00:13]}  a5 {[%clk 0:00:16]} 49. Kf4 {[%clk 0:00:12]}  Kb5 {[%clk 0:00:16]} 50. Nxa5 {[%clk 0:00:12]}  Kxa5 {[%clk 0:00:17]} 51. Kg5 {[%clk 0:00:12]}  Ne3 {[%clk 0:00:16]} 52. Kxh5 {[%clk 0:00:13]}  Kb5 {[%clk 0:00:17]} 53. Kh6 {[%clk 0:00:13]}  Nf5+ {[%clk 0:00:16]} 54. Nxf5 {[%clk 0:00:13]}  Kc5 {[%clk 0:00:16]} 55. Kxh7 {[%clk 0:00:14]} 1/2-1/2


[Site "https://www.chess.com"]

[Event "Titled Tuesday Blitz February 21 Late 2023"]
[White "Averjanov, Alexey"]
[Black "Prydun, Andriy"]
[WhiteFideId "14109867"]
[BlackFideId "14145898"]
[WhiteElo "2399"]
[BlackElo "2134"]
[Result "1-0"]
[Round "07"]
[TimeControl "180+2"]
[Date "2023.02.21"]
[WhiteClock "0:00:51"]
[BlackClock "0:00:06"]

1. d4 {[%clk 0:03:00]}  Nf6 {[%clk 0:02:58]} 2. c4 {[%clk 0:02:59]}  c5 {[%clk 0:02:58]} 3. Nf3 {[%clk 0:02:55]}  cxd4 {[%clk 0:02:57]} 4. Nxd4 {[%clk 0:02:56]}  Nc6 {[%clk 0:02:57]} 5. g3 {[%clk 0:02:56]}  Qb6 {[%clk 0:02:58]} 6. Nb3 {[%clk 0:02:55]}  Ne5 {[%clk 0:02:44]} 7. c5 {[%clk 0:02:47]}  Qc6 {[%clk 0:02:34]} 8. f3 {[%clk 0:02:36]}  d6 {[%clk 0:02:22]} 9. cxd6 {[%clk 0:02:31]}  e6 {[%clk 0:02:22]} 10. Bg2 {[%clk 0:02:25]}  Bxd6 {[%clk 0:02:18]} 11. O-O {[%clk 0:02:24]}  O-O {[%clk 0:02:13]} 12. Nc3 {[%clk 0:02:25]}  Nc4 {[%clk 0:01:54]} 13. e4 {[%clk 0:02:12]}  b5 {[%clk 0:01:36]} 14. Qe2 {[%clk 0:02:08]}  Bb7 {[%clk 0:01:34]} 15. Kh1 {[%clk 0:01:56]}  Nd7 {[%clk 0:01:31]} 16. Nd4 {[%clk 0:01:52]}  Qb6 {[%clk 0:01:27]} 17. Ndxb5 {[%clk 0:01:51]}  Ba6 {[%clk 0:01:20]} 18. Qxc4 {[%clk 0:01:47]}  Ne5 {[%clk 0:01:14]} 19. Qb3 {[%clk 0:01:40]}  Nd3 {[%clk 0:01:13]} 20. Nxd6 {[%clk 0:01:33]}  Nf2+ {[%clk 0:01:13]} 21. Rxf2 {[%clk 0:01:29]}  Qxf2 {[%clk 0:01:14]} 22. Bf4 {[%clk 0:01:24]}  Rab8 {[%clk 0:01:13]} 23. Ndb5 {[%clk 0:01:19]}  Rb6 {[%clk 0:00:53]} 24. Rf1 {[%clk 0:01:17]}  Qc5 {[%clk 0:00:50]} 25. a4 {[%clk 0:01:15]}  e5 {[%clk 0:00:46]} 26. Bd2 {[%clk 0:01:10]}  Rd8 {[%clk 0:00:44]} 27. Be1 {[%clk 0:01:08]}  Rh6 {[%clk 0:00:38]} 28. Bf2 {[%clk 0:01:03]}  Qc6 {[%clk 0:00:36]} 29. Nd5 {[%clk 0:01:01]}  Qd7 {[%clk 0:00:19]} 30. Be3 {[%clk 0:00:58]}  Rh5 {[%clk 0:00:17]} 31. Rc1 {[%clk 0:00:56]}  Rf8 {[%clk 0:00:07]} 32. Rc7 {[%clk 0:00:55]}  Qe6 {[%clk 0:00:07]} 33. Ne7+ {[%clk 0:00:51]}  Kh8 {[%clk 0:00:07]} 34. Qxe6 {[%clk 0:00:50]}  fxe6 {[%clk 0:00:07]} 35. Rxa7 {[%clk 0:00:50]}  Bxb5 {[%clk 0:00:06]} 36. axb5 {[%clk 0:00:51]} 1-0


[Site "https://www.chess.com"]

[Event "Titled Tuesday Blitz February 21 Late 2023"]
[White "mohsengabr2002"]
[Black "Chor, Kevin"]
[BlackFideId "2090740"]
[WhiteElo "2349"]
[BlackElo "1944"]
[Result "0-1"]
[Round "07"]
[TimeControl "180+2"]
[Date "2023.02.21"]
[WhiteClock "0:01:59"]
[BlackClock "0:01:32"]

1. b3 {[%clk 0:03:00]}  Nf6 {[%clk 0:02:57]} 2. e3 {[%clk 0:03:00]}  g6 {[%clk 0:02:56]} 3. Bb2 {[%clk 0:03:00]}  Bg7 {[%clk 0:02:57]} 4. g4 {[%clk 0:03:00]}  d5 {[%clk 0:02:42]} 5. g5 {[%clk 0:03:00]}  Nh5 {[%clk 0:02:42]} 6. d4 {[%clk 0:03:00]}  c5 {[%clk 0:02:23]} 7. c3 {[%clk 0:03:00]}  Nc6 {[%clk 0:02:19]} 8. Be2 {[%clk 0:02:59]}  Bf5 {[%clk 0:02:18]} 9. Bxh5 {[%clk 0:02:58]}  gxh5 {[%clk 0:02:18]} 10. Qxh5 {[%clk 0:02:59]}  cxd4 {[%clk 0:02:19]} 11. exd4 {[%clk 0:02:55]}  Qd7 {[%clk 0:02:08]} 12. Qe2 {[%clk 0:02:54]}  O-O-O {[%clk 0:02:04]} 13. f4 {[%clk 0:02:52]}  Be4 {[%clk 0:01:59]} 14. Nf3 {[%clk 0:02:51]}  Qg4 {[%clk 0:01:59]} 15. Rf1 {[%clk 0:02:50]}  Qxf4 {[%clk 0:01:59]} 16. Ne5 {[%clk 0:02:40]}  Qh4+ {[%clk 0:01:56]} 17. Qf2 {[%clk 0:02:40]}  Qxf2+ {[%clk 0:01:52]} 18. Rxf2 {[%clk 0:02:41]}  Bxe5 {[%clk 0:01:49]} 19. dxe5 {[%clk 0:02:41]}  Nxe5 {[%clk 0:01:50]} 20. Kd2 {[%clk 0:02:10]}  Nd3 {[%clk 0:01:45]} 21. Rxf7 {[%clk 0:02:07]}  Nxb2 {[%clk 0:01:44]} 22. Rxe7 {[%clk 0:02:06]}  Rhe8 {[%clk 0:01:38]} 23. Rg7 {[%clk 0:01:59]}  Bd3 {[%clk 0:01:32]} 0-1


[Site "https://www.chess.com"]

[Event "Titled Tuesday Blitz February 21 Late 2023"]
[White "Aradhya, Garg"]
[Black "Hajiyev, Kanan"]
[WhiteFideId "25006746"]
[BlackFideId "13404148"]
[WhiteElo "2284"]
[BlackElo "2197"]
[Result "1-0"]
[Round "07"]
[TimeControl "180+2"]
[Date "2023.02.21"]
[WhiteClock "0:00:41"]
[BlackClock "0:00:04"]

1. d4 {[%clk 0:03:00]}  d5 {[%clk 0:02:59]} 2. c4 {[%clk 0:02:59]}  c6 {[%clk 0:03:00]} 3. Nc3 {[%clk 0:02:58]}  Nf6 {[%clk 0:03:01]} 4. e3 {[%clk 0:02:58]}  g6 {[%clk 0:02:55]} 5. Nf3 {[%clk 0:02:57]}  Bg7 {[%clk 0:02:55]} 6. Be2 {[%clk 0:02:57]}  O-O {[%clk 0:02:55]} 7. O-O {[%clk 0:02:57]}  Ne4 {[%clk 0:02:55]} 8. a4 {[%clk 0:02:55]}  Bg4 {[%clk 0:02:49]} 9. a5 {[%clk 0:02:54]}  Nd7 {[%clk 0:02:47]} 10. Qb3 {[%clk 0:02:50]}  Nxc3 {[%clk 0:02:41]} 11. bxc3 {[%clk 0:02:50]}  dxc4 {[%clk 0:02:39]} 12. Qxb7 {[%clk 0:02:49]}  c5 {[%clk 0:02:33]} 13. Bxc4 {[%clk 0:02:31]}  Qc8 {[%clk 0:02:02]} 14. Ba6 {[%clk 0:02:25]}  Qd8 {[%clk 0:01:34]} 15. Ba3 {[%clk 0:02:20]}  Qxa5 {[%clk 0:01:13]} 16. Bxc5 {[%clk 0:02:15]}  Qxc3 {[%clk 0:01:12]} 17. Rfc1 {[%clk 0:01:59]}  Bxf3 {[%clk 0:01:11]} 18. Qxd7 {[%clk 0:01:51]}  Rad8 {[%clk 0:00:40]} 19. Qxe7 {[%clk 0:01:49]}  Qd2 {[%clk 0:00:30]} 20. gxf3 {[%clk 0:01:47]}  Rfe8 {[%clk 0:00:29]} 21. Qh4 {[%clk 0:01:38]}  Rd5 {[%clk 0:00:28]} 22. Bc4 {[%clk 0:01:23]}  Rh5 {[%clk 0:00:28]} 23. Qf4 {[%clk 0:01:14]}  Rf5 {[%clk 0:00:20]} 24. Rd1 {[%clk 0:01:10]}  Qb2 {[%clk 0:00:08]} 25. Rab1 {[%clk 0:01:04]}  Qc2 {[%clk 0:00:07]} 26. Bd3 {[%clk 0:01:00]}  Qxd1+ {[%clk 0:00:04]} 27. Rxd1 {[%clk 0:01:00]}  Rxf4 {[%clk 0:00:05]} 28. exf4 {[%clk 0:01:00]}  Rd8 {[%clk 0:00:05]} 29. Ba6 {[%clk 0:00:54]}  Bf8 {[%clk 0:00:04]} 30. Bxa7 {[%clk 0:00:53]}  Bd6 {[%clk 0:00:03]} 31. Rc1 {[%clk 0:00:41]}  Ra8 {[%clk 0:00:03]} 32. Rc8+ {[%clk 0:00:41]}  Rxc8 {[%clk 0:00:02]} 33. Bxc8 {[%clk 0:00:42]}  Bxf4 {[%clk 0:00:02]} 34. d5 {[%clk 0:00:42]}  Kf8 {[%clk 0:00:03]} 35. Bc5+ {[%clk 0:00:40]}  Ke8 {[%clk 0:00:03]} 36. Ba6 {[%clk 0:00:41]}  Bc7 {[%clk 0:00:03]} 37. Bb5+ {[%clk 0:00:41]}  Kd8 {[%clk 0:00:04]} 38. d6 {[%clk 0:00:41]}  Ba5 {[%clk 0:00:05]} 39. Bd4 {[%clk 0:00:41]}  Bb4 {[%clk 0:00:04]} 40. Bb6+ {[%clk 0:00:41]}  Kc8 {[%clk 0:00:03]} 41. d7+ {[%clk 0:00:41]}  Kb7 {[%clk 0:00:04]} 1-0


[Site "https://www.chess.com"]

[Event "Titled Tuesday Blitz February 21 Late 2023"]
[White "Delorme, Axel"]
[Black "Bjelobrk, Igor"]
[WhiteFideId "632023"]
[BlackFideId "4300726"]
[WhiteElo "2483"]
[BlackElo "2403"]
[Result "0-1"]
[Round "07"]
[TimeControl "180+2"]
[Date "2023.02.21"]
[WhiteClock "0:00:01"]
[BlackClock "0:00:05"]

1. e4 {[%clk 0:03:00]}  e6 {[%clk 0:02:52]} 2. d4 {[%clk 0:03:00]}  d5 {[%clk 0:02:51]} 3. Nc3 {[%clk 0:03:01]}  Bb4 {[%clk 0:02:50]} 4. e5 {[%clk 0:03:01]}  b6 {[%clk 0:02:48]} 5. a3 {[%clk 0:03:00]}  Bf8 {[%clk 0:02:46]} 6. Bb5+ {[%clk 0:02:39]}  Bd7 {[%clk 0:02:37]} 7. Bd3 {[%clk 0:02:40]}  c5 {[%clk 0:02:34]} 8. Nf3 {[%clk 0:02:39]}  Nc6 {[%clk 0:02:24]} 9. Nb5 {[%clk 0:02:27]}  cxd4 {[%clk 0:02:14]} 10. Nbxd4 {[%clk 0:02:24]}  Nxd4 {[%clk 0:02:08]} 11. Nxd4 {[%clk 0:02:24]}  Ne7 {[%clk 0:02:09]} 12. O-O {[%clk 0:02:23]}  Ng6 {[%clk 0:02:04]} 13. f4 {[%clk 0:02:15]}  Bc5 {[%clk 0:01:57]} 14. c3 {[%clk 0:02:15]}  O-O {[%clk 0:01:54]} 15. Be3 {[%clk 0:02:05]}  f5 {[%clk 0:01:36]} 16. exf6 {[%clk 0:01:51]}  Qxf6 {[%clk 0:01:35]} 17. b4 {[%clk 0:01:45]}  Bd6 {[%clk 0:01:34]} 18. Qh5 {[%clk 0:01:41]}  Rae8 {[%clk 0:01:24]} 19. Bd2 {[%clk 0:01:25]}  Re7 {[%clk 0:01:22]} 20. Rae1 {[%clk 0:01:20]}  Be8 {[%clk 0:01:22]} 21. Qh3 {[%clk 0:01:17]}  Bd7 {[%clk 0:01:10]} 22. Qh5 {[%clk 0:01:09]}  Be8 {[%clk 0:01:04]} 23. f5 {[%clk 0:00:36]}  Nf4 {[%clk 0:00:46]} 24. Qf3 {[%clk 0:00:16]}  Nxd3 {[%clk 0:00:42]} 25. Qxd3 {[%clk 0:00:17]}  e5 {[%clk 0:00:43]} 26. Ne6 {[%clk 0:00:14]}  Rxe6 {[%clk 0:00:39]} 27. fxe6 {[%clk 0:00:14]}  Qxe6 {[%clk 0:00:39]} 28. Rxf8+ {[%clk 0:00:13]}  Bxf8 {[%clk 0:00:39]} 29. Qg3 {[%clk 0:00:06]}  e4 {[%clk 0:00:35]} 30. Be3 {[%clk 0:00:04]}  h6 {[%clk 0:00:29]} 31. Bf4 {[%clk 0:00:03]}  Bg6 {[%clk 0:00:28]} 32. Be5 {[%clk 0:00:02]}  Kh7 {[%clk 0:00:28]} 33. Rf1 {[%clk 0:00:02]}  Be7 {[%clk 0:00:28]} 34. h3 {[%clk 0:00:03]}  b5 {[%clk 0:00:26]} 35. Qf4 {[%clk 0:00:01]}  a6 {[%clk 0:00:25]} 36. Qg3 {[%clk 0:00:02]}  Bg5 {[%clk 0:00:24]} 37. Bf4 {[%clk 0:00:01]}  Bf6 {[%clk 0:00:23]} 38. Be3 {[%clk 0:00:01]}  Bxc3 {[%clk 0:00:22]} 39. Bxh6 {[%clk 0:00:01]}  Bd4+ {[%clk 0:00:20]} 40. Be3 {[%clk 0:00:02]}  Be5 {[%clk 0:00:20]} 41. Bf4 {[%clk 0:00:02]}  Bf6 {[%clk 0:00:20]} 42. Be3 {[%clk 0:00:02]}  d4 {[%clk 0:00:20]} 43. Bg5 {[%clk 0:00:03]}  Be5 {[%clk 0:00:20]} 44. Qh4+ {[%clk 0:00:04]}  Kg8 {[%clk 0:00:19]} 45. Be7 {[%clk 0:00:04]}  Bf7 {[%clk 0:00:12]} 46. Bc5 {[%clk 0:00:05]}  e3 {[%clk 0:00:12]} 47. Qd8+ {[%clk 0:00:05]}  Kh7 {[%clk 0:00:11]} 48. Qh4+ {[%clk 0:00:04]}  Kg6 {[%clk 0:00:11]} 49. Qe4+ {[%clk 0:00:02]}  Kh6 {[%clk 0:00:09]} 50. Bxd4 {[%clk 0:00:03]}  Bxd4 {[%clk 0:00:05]} 51. Qh4+ {[%clk 0:00:03]}  Bh5 {[%clk 0:00:05]} 52. Qxd4 {[%clk 0:00:03]}  e2 {[%clk 0:00:05]} 53. Qf4+ {[%clk 0:00:04]}  g5 {[%clk 0:00:05]} 54. Rf3 {[%clk 0:00:04]}  e1=Q+ {[%clk 0:00:05]} 55. Kh2 {[%clk 0:00:01]}  gxf4 {[%clk 0:00:05]} 0-1


[Site "https://www.chess.com"]

[Event "Titled Tuesday Blitz February 21 Late 2023"]
[White "Gascon Del Nogal, Jose Rafael"]
[Black "Dzida, Kamil"]
[WhiteFideId "3902463"]
[BlackFideId "21828652"]
[WhiteElo "2459"]
[BlackElo "2352"]
[Result "0-1"]
[Round "07"]
[TimeControl "180+2"]
[Date "2023.02.21"]
[WhiteClock "0:00:11"]
[BlackClock "0:00:29"]

1. e4 {[%clk 0:03:00]}  e5 {[%clk 0:02:58]} 2. Nf3 {[%clk 0:02:59]}  Nc6 {[%clk 0:02:59]} 3. Bc4 {[%clk 0:03:00]}  Nf6 {[%clk 0:02:58]} 4. d3 {[%clk 0:02:59]}  Bc5 {[%clk 0:02:58]} 5. c3 {[%clk 0:02:59]}  d6 {[%clk 0:02:55]} 6. O-O {[%clk 0:02:55]}  a6 {[%clk 0:02:55]} 7. a4 {[%clk 0:02:55]}  O-O {[%clk 0:02:54]} 8. h3 {[%clk 0:02:53]}  h6 {[%clk 0:02:53]} 9. Nbd2 {[%clk 0:02:52]}  Ba7 {[%clk 0:02:52]} 10. Re1 {[%clk 0:02:47]}  Be6 {[%clk 0:02:51]} 11. Bxe6 {[%clk 0:02:47]}  fxe6 {[%clk 0:02:52]} 12. b4 {[%clk 0:02:47]}  Qd7 {[%clk 0:02:51]} 13. Nf1 {[%clk 0:02:46]}  Nh5 {[%clk 0:02:42]} 14. Ra2 {[%clk 0:02:41]}  Rf7 {[%clk 0:02:39]} 15. Kh2 {[%clk 0:02:30]}  Raf8 {[%clk 0:02:37]} 16. Ng3 {[%clk 0:02:28]}  Nf4 {[%clk 0:02:28]} 17. Bxf4 {[%clk 0:02:27]}  Rxf4 {[%clk 0:02:24]} 18. b5 {[%clk 0:02:20]}  Ne7 {[%clk 0:02:21]} 19. d4 {[%clk 0:02:19]}  Ng6 {[%clk 0:02:11]} 20. Re3 {[%clk 0:01:46]}  exd4 {[%clk 0:01:56]} 21. cxd4 {[%clk 0:01:44]}  e5 {[%clk 0:01:43]} 22. Nf5 {[%clk 0:01:07]}  Ne7 {[%clk 0:01:36]} 23. dxe5 {[%clk 0:00:23]}  Nxf5 {[%clk 0:01:15]} 24. Qd5+ {[%clk 0:00:11]}  Kh8 {[%clk 0:00:56]} 25. e6 {[%clk 0:00:09]}  Qe7 {[%clk 0:00:39]} 26. exf5 {[%clk 0:00:09]}  Bxe3 {[%clk 0:00:39]} 27. fxe3 {[%clk 0:00:09]}  R4xf5 {[%clk 0:00:39]} 28. Qxb7 {[%clk 0:00:10]}  axb5 {[%clk 0:00:37]} 29. a5 {[%clk 0:00:10]}  Qxe6 {[%clk 0:00:30]} 30. a6 {[%clk 0:00:11]}  Qxa2 {[%clk 0:00:29]} 0-1


[Site "https://www.chess.com"]

[Event "Titled Tuesday Blitz February 21 Late 2023"]
[White "Shapiro, Viktor"]
[Black "Jovic, Stanoje"]
[WhiteFideId "4175700"]
[BlackFideId "905020"]
[WhiteElo "2192"]
[BlackElo "2075"]
[Result "1-0"]
[Round "07"]
[TimeControl "180+2"]
[Date "2023.02.21"]
[WhiteClock "0:01:29"]
[BlackClock "0:00:02"]

1. c4 {[%clk 0:03:00]}  e5 {[%clk 0:02:59]} 2. Nc3 {[%clk 0:03:01]}  Nf6 {[%clk 0:02:57]} 3. g3 {[%clk 0:03:01]}  c6 {[%clk 0:02:52]} 4. Bg2 {[%clk 0:03:01]}  d5 {[%clk 0:02:51]} 5. cxd5 {[%clk 0:03:02]}  cxd5 {[%clk 0:02:51]} 6. Qb3 {[%clk 0:03:03]}  d4 {[%clk 0:02:36]} 7. Bxb7 {[%clk 0:03:03]}  Bxb7 {[%clk 0:02:34]} 8. Qxb7 {[%clk 0:03:04]}  Nbd7 {[%clk 0:02:28]} 9. Nd5 {[%clk 0:03:04]}  Nxd5 {[%clk 0:02:16]} 10. Qxd5 {[%clk 0:03:03]}  Be7 {[%clk 0:02:09]} 11. Nf3 {[%clk 0:03:01]}  O-O {[%clk 0:02:03]} 12. O-O {[%clk 0:02:56]}  Bf6 {[%clk 0:02:02]} 13. d3 {[%clk 0:02:54]}  Rb8 {[%clk 0:01:58]} 14. b3 {[%clk 0:02:49]}  Qe7 {[%clk 0:01:56]} 15. Bd2 {[%clk 0:02:33]}  Nb6 {[%clk 0:01:51]} 16. Qe4 {[%clk 0:02:30]}  Rfc8 {[%clk 0:01:39]} 17. Rfc1 {[%clk 0:02:29]}  h6 {[%clk 0:01:26]} 18. a4 {[%clk 0:02:22]}  Nd7 {[%clk 0:01:17]} 19. b4 {[%clk 0:02:20]}  a6 {[%clk 0:01:09]} 20. Rc6 {[%clk 0:02:13]}  Rxc6 {[%clk 0:01:00]} 21. Qxc6 {[%clk 0:02:14]}  Rb6 {[%clk 0:01:01]} 22. Qd5 {[%clk 0:02:04]}  g5 {[%clk 0:00:52]} 23. a5 {[%clk 0:02:01]}  Re6 {[%clk 0:00:48]} 24. b5 {[%clk 0:01:59]}  e4 {[%clk 0:00:39]} 25. dxe4 {[%clk 0:01:56]}  d3 {[%clk 0:00:21]} 26. Re1 {[%clk 0:01:51]}  dxe2 {[%clk 0:00:18]} 27. Rxe2 {[%clk 0:01:51]}  axb5 {[%clk 0:00:18]} 28. Qxb5 {[%clk 0:01:48]}  Rxe4 {[%clk 0:00:18]} 29. Rxe4 {[%clk 0:01:48]}  Qxe4 {[%clk 0:00:18]} 30. Qxd7 {[%clk 0:01:45]}  Qxf3 {[%clk 0:00:17]} 31. a6 {[%clk 0:01:41]}  Qe4 {[%clk 0:00:07]} 32. Qb7 {[%clk 0:01:31]}  Qe2 {[%clk 0:00:04]} 33. Be3 {[%clk 0:01:29]}  Qd1+ {[%clk 0:00:02]} 34. Kg2 {[%clk 0:01:29]} 1-0


[Site "https://www.chess.com"]

[Event "Titled Tuesday Blitz February 21 Late 2023"]
[White "Cori T., Deysi"]
[Black "Meunier-Pion, Jean"]
[WhiteFideId "3801934"]
[BlackFideId "20685327"]
[WhiteElo "2362"]
[BlackElo "2215"]
[Result "1-0"]
[Round "07"]
[TimeControl "180+2"]
[Date "2023.02.21"]
[WhiteClock "0:01:26"]
[BlackClock "0:00:05"]

1. d4 {[%clk 0:03:00]}  d5 {[%clk 0:03:00]} 2. Nf3 {[%clk 0:03:00]}  Nf6 {[%clk 0:03:00]} 3. c4 {[%clk 0:03:00]}  c6 {[%clk 0:03:00]} 4. Nc3 {[%clk 0:02:59]}  a6 {[%clk 0:03:00]} 5. e3 {[%clk 0:02:59]}  b5 {[%clk 0:03:00]} 6. cxd5 {[%clk 0:02:59]}  cxd5 {[%clk 0:03:01]} 7. Bd3 {[%clk 0:02:59]}  Bg4 {[%clk 0:02:59]} 8. h3 {[%clk 0:02:59]}  Bxf3 {[%clk 0:02:57]} 9. Qxf3 {[%clk 0:02:58]}  Nc6 {[%clk 0:02:52]} 10. O-O {[%clk 0:02:59]}  b4 {[%clk 0:02:41]} 11. Na4 {[%clk 0:02:57]}  e5 {[%clk 0:02:38]} 12. dxe5 {[%clk 0:02:54]}  Nxe5 {[%clk 0:02:38]} 13. Qe2 {[%clk 0:02:54]}  Nxd3 {[%clk 0:02:36]} 14. Qxd3 {[%clk 0:02:54]}  Bd6 {[%clk 0:02:29]} 15. b3 {[%clk 0:02:51]}  O-O {[%clk 0:02:27]} 16. Bb2 {[%clk 0:02:51]}  Rc8 {[%clk 0:01:58]} 17. Bxf6 {[%clk 0:02:49]}  Qxf6 {[%clk 0:01:58]} 18. Qxd5 {[%clk 0:02:49]}  Rfd8 {[%clk 0:01:58]} 19. Qf3 {[%clk 0:02:47]}  Qe5 {[%clk 0:01:38]} 20. g3 {[%clk 0:02:45]}  h5 {[%clk 0:01:34]} 21. h4 {[%clk 0:02:43]}  Rc2 {[%clk 0:01:22]} 22. Rfd1 {[%clk 0:02:41]}  Rdc8 {[%clk 0:01:16]} 23. Nb6 {[%clk 0:02:37]}  R8c3 {[%clk 0:00:39]} 24. Nc4 {[%clk 0:02:20]}  Rxc4 {[%clk 0:00:40]} 25. bxc4 {[%clk 0:02:19]}  Rxc4 {[%clk 0:00:37]} 26. Rac1 {[%clk 0:02:19]}  Rxc1 {[%clk 0:00:36]} 27. Rxc1 {[%clk 0:02:20]}  g6 {[%clk 0:00:36]} 28. Kg2 {[%clk 0:02:17]}  a5 {[%clk 0:00:35]} 29. Rc6 {[%clk 0:02:17]}  Be7 {[%clk 0:00:33]} 30. Rc8+ {[%clk 0:02:14]}  Kg7 {[%clk 0:00:33]} 31. Ra8 {[%clk 0:02:14]}  Qb5 {[%clk 0:00:26]} 32. Qe4 {[%clk 0:02:12]}  Bf6 {[%clk 0:00:26]} 33. Kh2 {[%clk 0:02:09]}  Qe2 {[%clk 0:00:24]} 34. Qf4 {[%clk 0:02:06]}  Qxa2 {[%clk 0:00:14]} 35. Ra6 {[%clk 0:02:05]}  Be7 {[%clk 0:00:09]} 36. Qe5+ {[%clk 0:02:04]}  Kh7 {[%clk 0:00:07]} 37. Kg2 {[%clk 0:02:00]}  Bf8 {[%clk 0:00:07]} 38. Ra7 {[%clk 0:01:50]}  Kg8 {[%clk 0:00:07]} 39. Qe4 {[%clk 0:01:47]}  a4 {[%clk 0:00:05]} 40. Ra8 {[%clk 0:01:46]}  Qe6 {[%clk 0:00:05]} 41. Qxe6 {[%clk 0:01:40]}  fxe6 {[%clk 0:00:06]} 42. Rxa4 {[%clk 0:01:40]}  Kf7 {[%clk 0:00:07]} 43. Ra7+ {[%clk 0:01:40]}  Kf6 {[%clk 0:00:07]} 44. f4 {[%clk 0:01:36]}  Bc5 {[%clk 0:00:06]} 45. Rb7 {[%clk 0:01:34]}  e5 {[%clk 0:00:05]} 46. Kf3 {[%clk 0:01:34]}  exf4 {[%clk 0:00:05]} 47. gxf4 {[%clk 0:01:33]}  Ke6 {[%clk 0:00:03]} 48. e4 {[%clk 0:01:33]}  Be7 {[%clk 0:00:02]} 49. f5+ {[%clk 0:01:32]}  gxf5 {[%clk 0:00:03]} 50. exf5+ {[%clk 0:01:32]}  Kd6 {[%clk 0:00:03]} 51. Rxb4 {[%clk 0:01:30]}  Ke5 {[%clk 0:00:03]} 52. Rb5+ {[%clk 0:01:30]}  Kf6 {[%clk 0:00:04]} 53. Ke4 {[%clk 0:01:30]}  Bd6 {[%clk 0:00:05]} 54. Rb6 {[%clk 0:01:29]}  Ke7 {[%clk 0:00:05]} 55. f6+ {[%clk 0:01:27]}  Ke6 {[%clk 0:00:05]} 56. Rxd6+ {[%clk 0:01:25]}  Kxd6 {[%clk 0:00:05]} 57. Kf5 {[%clk 0:01:26]}  Kd7 {[%clk 0:00:05]} 58. Kg6 {[%clk 0:01:26]}  Ke8 {[%clk 0:00:05]} 59. Kg7 {[%clk 0:01:26]} 1-0


[Site "https://www.chess.com"]